bitfinex/quotes_SOLUSD_20240711
["timestamp","ask_amount","ask_price","bid_price","bid_amount"]
[1720711806623,1.66766902,140.78,140.74,38.468]
[1720711807125,15.26766902,140.78,140.74,24.868]
[1720711807625,13.6,140.77,140.74,17.7629]
[1720711807931,1.66766902,140.76,140.74,17.7629]
[1720711808432,15.26766902,140.76,140.71,32.27090205]
[1720711808618,13.6,140.75,140.71,32.27090205]
[1720711808814,15.26766902,140.74,140.71,7.39820205]
[1720711809007,7.1068,140.71,140.63,57.6071]
[1720711809328,15.26766902,140.7,140.67,7.1084]
[1720711809506,15.26766902,140.7,140.66,7.1092]
[1720711809702,15.26766902,140.69,140.65,24.883]
[1720711810008,15.26766902,140.68,140.64,7.1102]
[1720711810331,1.66766902,140.72,140.64,13.6]
[1720711810632,46.66766902,140.73,140.68,24.8783]
[1720711810832,46.66766902,140.73,140.69,20.7077]
[1720711811043,46.66766902,140.73,140.69,13.6]
[1720711811408,46.66766902,140.73,140.69,20.7076]
[1720711811823,46.66766902,140.73,140.69,13.6]
[1720711812043,42.6138,140.74,140.7,13.6]
[1720711812044,21.9085,140.74,140.7,13.6]
[1720711812211,16.52263445,140.75,140.7,20.7071]
[1720711812411,13.6,140.76,140.65,16.0329]
[1720711812640,1.66766902,140.77,140.67,7.39467845]
[1720711812641,13.6,140.7,140.67,7.39467845]
[1720711812810,1.66766902,140.69,140.64,17.7749]
[1720711813010,1.66766902,140.69,140.64,24.8849]
[1720711813641,46.66766902,140.69,140.65,7.1098]
[1720711813940,46.66766902,140.7,140.64,17.7749]
[1720711814144,1.66766902,140.7,140.64,17.7749]
[1720711814728,1.66766902,140.7,140.66,7.1092]
[1720711814929,1.66766902,140.7,140.65,7.1096]
[1720711815126,46.66766902,140.7,140.65,7.1096]
[1720711815312,22.8545,140.71,140.66,17.7728]
[1720711815510,24.52216902,140.71,140.67,7.1086]
[1720711815715,1.66766902,140.72,140.68,17.7704]
[1720711815915,22.9233,140.75,140.68,17.7704]
[1720711815916,46.66766902,140.73,140.68,17.7704]
[1720711816115,1.66766902,140.73,140.69,7.1077]
[1720711816315,1.66766902,140.73,140.68,24.8785]
[1720711816723,46.66766902,140.74,140.69,7.1076]
[1720711816916,1.66766902,140.73,140.69,7.1076]
[1720711817518,1.66766902,140.73,140.65,35.5475]
[1720711817519,7.1071,140.71,140.65,17.774]
[1720711817722,1.66766902,140.7,140.65,17.774]
[1720711817923,1.66766902,140.71,140.67,7.1084]
[1720711818134,45.0,140.74,140.67,7.1084]
[1720711818135,46.66766902,140.72,140.67,17.7718]
[1720711818330,7.1058,140.73,140.68,7.1082]
[1720711818553,45.0,140.72,140.67,17.7718]
[1720711818727,1.66766902,140.71,140.64,17.7747]
[1720711818927,1.66766902,140.7,140.64,17.7747]
[1720711819125,1.66766902,140.7,140.61,53.38024086]
[1720711819126,7.1083,140.68,140.61,53.38024086]
[1720711819328,1.66766902,140.67,140.61,53.38024086]
[1720711819538,1.66766902,140.67,140.63,24.8874]
[1720711820140,1.66766902,140.67,140.64,7.1103]
[1720711820726,7.1074,140.7,140.65,7.1097]
[1720711820927,46.66766902,140.69,140.65,7.1097]
[1720711821638,1.66766902,140.69,140.65,7.1097]
[1720711821981,1.66766902,140.7,140.66,7.109]
[1720711822259,7.1066,140.72,140.66,7.109]
[1720711822548,1.66766902,140.71,140.67,7.1087]
[1720711822936,1.66766902,140.71,140.66,7.1092]
[1720711823242,1.66766902,140.7,140.65,24.8839]
[1720711823550,0.17,140.71,140.64,7.1102]
[1720711823747,1.66766902,140.71,140.64,7.1102]
[1720711823947,1.83766902,140.7,140.64,7.1102]
[1720711824153,7.1084,140.68,140.63,7.1107]
[1720711824327,1.66766902,140.67,140.62,24.8884]
[1720711824730,8.77666902,140.67,140.62,24.8884]
[1720711825148,1.66766902,140.67,140.62,24.8884]
[1720711825326,46.66766902,140.67,140.62,24.8884]
[1720711825529,53.77646902,140.67,140.62,24.8884]
[1720711826348,7.1094,140.66,140.61,0.04214086]
[1720711826656,15.947,140.68,140.61,0.04214086]
[1720711826657,53.77796902,140.65,140.61,0.04214086]
[1720711826982,1.83766902,140.64,140.61,0.04214086]
[1720711827364,8.94806902,140.64,140.61,0.04214086]
[1720711827567,45.0,140.63,140.61,0.04214086]
[1720711828046,1.66766902,140.62,140.61,0.04214086]
[1720711828249,8.77896902,140.62,140.61,0.04214086]
[1720711828468,8.77896902,140.62,140.57,0.8261568]
[1720711828469,46.66766902,140.62,140.57,0.8261568]
[1720711828673,53.77896902,140.62,140.57,0.8261568]
[1720711828865,52.1119,140.61,140.57,0.8261568]
[1720711829169,1.66766902,140.6,140.57,0.8261568]
[1720711829967,1.66766902,140.6,140.57,7.9399568]
[1720711830167,1.66766902,140.6,140.57,0.3261568]
[1720711831648,8.78006902,140.6,140.57,0.3261568]
[1720711831946,1.66766902,140.6,140.57,0.3261568]
[1720711832156,21.9777,140.63,140.57,0.3261568]
[1720711832359,1.66766902,140.62,140.57,0.3261568]
[1720711833075,1.66766902,140.62,140.57,7.4399568]
[1720711833581,53.77896902,140.62,140.57,0.3261568]
[1720711833784,46.66766902,140.62,140.57,0.3261568]
[1720711833965,7.2822,140.61,140.57,0.3261568]
[1720711834168,1.66766902,140.6,140.57,0.3261568]
[1720711834681,46.66766902,140.6,140.57,0.3261568]
[1720711834866,7.1115,140.62,140.57,0.3261568]
[1720711835181,45.0,140.61,140.57,0.3261568]
[1720711835382,1.66766902,140.6,140.57,0.3261568]
[1720711835976,45.0,140.61,140.57,0.3261568]
[1720711836173,46.66766902,140.61,140.57,0.3261568]
[1720711836376,8.77756902,140.65,140.59,7.1128]
[1720711836577,1.66766902,140.65,140.59,17.7815]
[1720711836762,18.02426902,140.66,140.59,17.7815]
[1720711836994,25.13356902,140.66,140.6,7.1122]
[1720711837283,18.02426902,140.66,140.59,17.7815]
[1720711837458,18.02426902,140.66,140.57,23.6571568]
[1720711837661,7.1113,140.62,140.57,0.3261568]
[1720711837862,8.77966902,140.61,140.57,0.3261568]
[1720711838065,1.66766902,140.6,140.57,0.3261568]
[1720711838682,46.66766902,140.61,140.57,0.3261568]
[1720711838986,46.66766902,140.61,140.57,7.4399568]
[1720711838987,45.0,140.61,140.57,7.4399568]
[1720711839154,34.1303,140.66,140.57,0.3261568]
[1720711839155,1.66766902,140.6,140.57,0.3261568]
[1720711839759,1.66766902,140.6,140.57,7.4396568]
[1720711840182,1.66766902,140.61,140.57,7.4396568]
[1720711840358,1.66766902,140.6,140.57,18.1104568]
[1720711840785,1.66766902,140.6,140.57,25.2241568]
[1720711841367,1.66766902,140.6,140.57,0.3261568]
[1720711841585,0.17,140.59,140.57,0.3261568]
[1720711842164,1.66766902,140.58,140.57,0.3261568]
[1720711842787,46.66766902,140.58,140.57,0.3261568]
[1720711843181,8.78016902,140.6,140.57,0.3261568]
[1720711843379,45.17,140.59,140.57,0.3261568]
[1720711843586,1.66766902,140.58,140.57,0.3261568]
[1720711843788,8.78096902,140.58,140.57,0.3261568]
[1720711844090,53.95096902,140.58,140.57,0.3261568]
[1720711844590,52.2833,140.58,140.57,0.3261568]
[1720711845976,52.2833,140.58,140.51,14.51342287]
[1720711846178,53.78176902,140.57,140.51,7.39662287]
[1720711846397,0.17,140.56,140.51,7.39662287]
[1720711846897,7.115,140.55,140.51,7.39662287]
[1720711847107,45.0,140.54,140.48,7.1183]
[1720711847477,0.17,140.53,140.48,7.1183]
[1720711847703,1.83766902,140.53,140.48,7.1183]
[1720711848078,1.83766902,140.53,140.47,24.9154]
[1720711848796,1.66766902,140.53,140.47,17.7966]
[1720711848981,22.4318,140.55,140.5,24.9104]
[1720711849190,0.17,140.56,140.46,7.3942486]
[1720711849384,0.17,140.56,140.47,17.7968]
[1720711849577,53.95206902,140.56,140.47,17.7968]
[1720711849777,46.83766902,140.56,140.49,7.1176]
[1720711850297,46.83766902,140.56,140.5,7.1173]
[1720711850495,1.83766902,140.56,140.5,7.1173]
[1720711851090,1.66766902,140.58,140.51,17.792]
[1720711851297,1.66766902,140.58,140.53,7.1157]
[1720711851471,1.66766902,140.57,140.51,17.792]
[1720711851675,1.66766902,140.57,140.51,24.9085]
[1720711852075,8.78156902,140.57,140.51,17.792]
[1720711852275,1.66766902,140.57,140.52,7.1164]
[1720711852488,22.4318,140.59,140.51,17.792]
[1720711852489,1.66766902,140.58,140.51,24.9087]
[1720711852688,1.66766902,140.57,140.52,7.1163]
[1720711852886,46.66766902,140.58,140.53,7.1158]
[1720711853287,1.66766902,140.57,140.51,24.9088]
[1720711853491,1.66766902,140.57,140.51,17.792]
[1720711853798,1.66766902,140.57,140.51,24.9087]
[1720711854192,7.1147,140.56,140.49,7.1177]
[1720711854501,53.95256902,140.55,140.48,24.9134]
[1720711854699,1.66766902,140.54,140.48,24.9134]
[1720711855301,1.66766902,140.54,140.46,14.5136486]
[1720711855302,28.666,140.53,140.46,14.5136486]
[1720711855479,7.117,140.51,140.43,7.9469568]
[1720711855673,7.117,140.51,140.43,0.8261568]
[1720711855674,1.66766902,140.5,140.43,0.8261568]
[1720711855887,46.66766902,140.5,140.44,7.12]
[1720711856179,0.17,140.49,140.43,0.8261568]
[1720711856383,1.66766902,140.48,140.43,0.8261568]
[1720711856614,46.66766902,140.48,140.43,7.9469568]
[1720711856905,1.83766902,140.49,140.44,7.1203]
[1720711857104,1.83766902,140.49,140.43,0.8261568]
[1720711857401,1.83766902,140.49,140.43,7.9469568]
[1720711857598,1.83766902,140.49,140.44,7.1204]
[1720711857810,1.83766902,140.49,140.43,7.9469568]
[1720711857982,1.83766902,140.49,140.43,0.8261568]
[1720711858404,8.95576902,140.49,140.43,0.8261568]
[1720711858580,52.1184,140.48,140.43,0.8261568]
[1720711858781,1.66766902,140.47,140.43,0.8261568]
[1720711859531,1.66766902,140.47,140.43,7.9469568]
[1720711859678,1.66766902,140.47,140.43,0.8261568]
[1720711860079,13.1904,140.45,140.43,0.8261568]
[1720711860316,46.66766902,140.44,140.42,3.63815678]
[1720711860687,1.66766902,140.44,140.42,3.63815678]
[1720711861187,46.66766902,140.44,140.4,7.39627158]
[1720711861410,7.2911,140.43,140.35,24.9368]
[1720711861588,7.1226,140.4,140.33,27.23]
[1720711861782,7.1226,140.4,140.31,140.3387]
[1720711861783,8.79096902,140.39,140.31,117.817]
[1720711862113,46.66766902,140.38,140.32,7.1264]
[1720711862400,1.66766902,140.41,140.34,27.23]
[1720711862620,6.07,140.45,140.39,7.1227]
[1720711862912,45.0,140.44,140.4,7.1224]
[1720711863198,1.66766902,140.43,140.4,17.8051]
[1720711863403,1.66766902,140.42,140.37,27.23]
[1720711863619,1.66766902,140.42,140.36,7.1243]
[1720711863906,1.66766902,140.42,140.34,17.8133]
[1720711864216,7.122,140.41,140.33,7.1258]
[1720711864530,7.1231,140.39,140.32,52.1718]
[1720711864713,69.44046902,140.38,140.32,17.8153]
[1720711864923,69.44046902,140.38,140.3,27.23]
[1720711865091,0.17,140.37,140.29,45.8762568]
[1720711865413,1.83766902,140.37,140.31,7.1269]
[1720711865708,1.66766902,140.37,140.32,7.1265]
[1720711865908,1.66766902,140.37,140.31,17.8167]
[1720711865909,1.66766902,140.37,140.31,45.0467]
[1720711866214,67.7728,140.38,140.34,7.1253]
[1720711866399,1.66766902,140.37,140.33,17.8144]
[1720711866590,1.66766902,140.37,140.3,17.8185]
[1720711866790,1.66766902,140.37,140.3,24.9456]
[1720711866997,0.17,140.36,140.3,17.8185]
[1720711867203,7.2945,140.36,140.29,0.8261568]
[1720711867405,45.0,140.35,140.29,7.9541568]
[1720711867922,22.7728,140.38,140.29,7.9541568]
[1720711867923,22.7728,140.38,140.32,7.1261]
[1720711868098,46.83766902,140.37,140.32,7.1261]
[1720711868305,46.83766902,140.37,140.34,7.1254]
[1720711868620,1.66766902,140.37,140.34,7.1254]
[1720711869002,1.66766902,140.37,140.33,24.9403]
[1720711869504,6.2951,140.38,140.36,7.1243]
[1720711869690,23.2544,140.41,140.34,27.23]
[1720711869887,1.66766902,140.4,140.35,7.125]
[1720711870207,1.66766902,140.39,140.35,24.9372]
[1720711870410,1.66766902,140.4,140.35,17.8124]
[1720711870588,1.66766902,140.39,140.34,27.23]
[1720711870803,1.66766902,140.39,140.32,27.23]
[1720711870999,1.66766902,140.39,140.3,27.23]
[1720711871212,1.66766902,140.39,140.29,18.6460568]
[1720711871518,6.5963,140.37,140.3,7.1272]
[1720711871717,8.79226902,140.36,140.29,18.6460568]
[1720711871918,1.66766902,140.35,140.3,7.1274]
[1720711872425,1.66766902,140.35,140.29,0.8261568]
[1720711872639,1.66766902,140.36,140.34,27.23]
[1720711872932,1.66766902,140.36,140.31,7.1267]
[1720711873098,1.66766902,140.35,140.31,7.1267]
[1720711873304,1.66766902,140.35,140.3,52.1755]
[1720711873522,1.66766902,140.35,140.3,45.0481]
[1720711873925,1.66766902,140.35,140.29,0.8261568]
[1720711874227,1.66766902,140.35,140.3,7.1274]
[1720711874429,1.66766902,140.35,140.3,27.23]
[1720711874612,1.66766902,140.35,140.31,17.817]
[1720711874816,1.66766902,140.36,140.32,34.3564]
[1720711875016,1.66766902,140.39,140.33,17.8141]
[1720711875201,1.66766902,140.39,140.34,34.3555]
[1720711875403,1.66766902,140.39,140.35,7.1248]
[1720711875726,1.66766902,140.39,140.35,7.1249]
[1720711876024,1.66766902,140.38,140.34,27.23]
[1720711876229,1.66766902,140.4,140.34,27.23]
[1720711876440,1.66766902,140.39,140.34,27.23]
[1720711876640,1.66766902,140.4,140.34,34.3551]
[1720711877429,1.66766902,140.4,140.35,7.1249]
[1720711877737,1.66766902,140.39,140.35,17.8121]
[1720711877910,1.66766902,140.4,140.36,7.1241]
[1720711878105,1.66766902,140.4,140.35,24.937]
[1720711878437,1.66766902,140.39,140.35,17.8121]
[1720711878642,1.66766902,140.39,140.34,27.23]
[1720711879539,1.66766902,140.4,140.36,7.1241]
[1720711879828,1.66766902,140.4,140.36,52.1649]
[1720711881005,28.9721,140.45,140.36,45.0409]
[1720711881227,1.66766902,140.46,140.42,27.23]
[1720711881538,1.66766902,140.48,140.42,45.0332]
[1720711881707,1.66766902,140.48,140.44,45.0305]
[1720711881905,1.66766902,140.49,140.44,45.0305]
[1720711882234,1.66766902,140.48,140.44,27.23]
[1720711883020,1.66766902,140.49,140.44,27.23]
[1720711883225,1.66766902,140.48,140.44,27.23]
[1720711883440,7.1194,140.47,140.42,27.23]
[1720711883606,1.66766902,140.46,140.4,45.0354]
[1720711883936,1.66766902,140.45,140.41,7.1216]
[1720711884138,1.66766902,140.47,140.42,27.23]
[1720711885135,21.8518,140.5,140.45,7.1199]
[1720711885336,1.66766902,140.49,140.44,34.3503]
[1720711885648,1.66766902,140.48,140.44,27.23]
[1720711885931,1.66766902,140.48,140.42,27.23]
[1720711886128,1.66766902,140.48,140.42,34.3513]
[1720711886331,7.1195,140.46,140.4,17.8059]
[1720711886642,46.66766902,140.45,140.34,17.8136]
[1720711886831,7.1211,140.43,140.36,34.3541]
[1720711887013,1.66766902,140.42,140.36,34.3541]
[1720711887339,8.78906902,140.42,140.36,27.23]
[1720711887536,25.04296902,140.42,140.36,27.23]
[1720711887841,7.1221,140.41,140.34,52.1689]
[1720711888015,1.66766902,140.4,140.34,52.1689]
[1720711888216,1.66766902,140.39,140.34,52.1689]
[1720711888622,1.66766902,140.39,140.32,7.1265]
[1720711888946,1.66766902,140.39,140.33,7.1259]
[1720711889142,1.66766902,140.39,140.33,17.8144]
[1720711889434,1.66766902,140.39,140.34,7.1254]
[1720711889735,1.66766902,140.39,140.33,24.9402]
[1720711891032,1.66766902,140.39,140.3,7.36989027]
[1720711891211,16.2539,140.42,140.32,35.6327]
[1720711891212,1.66766902,140.41,140.32,35.6327]
[1720711891413,1.66766902,140.41,140.37,24.9332]
[1720711891613,1.66766902,140.43,140.37,17.8093]
[1720711891845,1.66766902,140.42,140.38,7.1235]
[1720711892033,1.66766902,140.41,140.37,17.8093]
[1720711892211,13.395,140.44,140.36,7.1244]
[1720711892212,8.78866902,140.43,140.36,7.1244]
[1720711892414,8.78866902,140.43,140.32,66.3827]
[1720711892415,8.78936902,140.42,140.35,7.1246]
[1720711892814,1.66766902,140.42,140.36,7.1245]
[1720711893235,46.66766902,140.42,140.35,7.1249]
[1720711893627,0.17,140.41,140.35,7.1249]
[1720711893823,6.2745,140.44,140.35,17.8121]
[1720711894170,1.66766902,140.43,140.35,17.8121]
[1720711894331,1.66766902,140.42,140.35,17.8121]
[1720711894518,1.66766902,140.42,140.35,24.9367]
[1720711894838,8.78926902,140.42,140.34,7.1251]
[1720711895030,45.0,140.41,140.34,7.1251]
[1720711895224,1.66766902,140.4,140.35,7.125]
[1720711895540,45.0,140.41,140.34,24.9383]
[1720711896131,45.0,140.41,140.35,7.1248]
[1720711896453,1.66766902,140.42,140.37,7.1239]
[1720711896747,7.94216902,140.44,140.4,7.1225]
[1720711896939,1.66766902,140.44,140.39,7.1228]
[1720711897243,1.66766902,140.44,140.38,17.808]
[1720711897441,1.66766902,140.43,140.38,17.808]
[1720711897617,1.66766902,140.45,140.38,17.808]
[1720711898029,8.78806902,140.45,140.38,17.808]
[1720711898231,8.78806902,140.45,140.38,24.9314]
[1720711898433,1.66766902,140.45,140.4,17.8058]
[1720711898847,1.66766902,140.45,140.4,24.9281]
[1720711899143,1.66766902,140.45,140.39,7.1228]
[1720711899740,1.66766902,140.45,140.37,17.8091]
[1720711899741,8.78756902,140.45,140.38,7.1235]
[1720711900044,1.66766902,140.45,140.39,17.8071]
[1720711900527,1.66766902,140.45,140.4,7.1225]
[1720711900920,7.1208,140.44,140.37,7.1236]
[1720711901120,8.78876902,140.43,140.36,24.9351]
[1720711901345,1.66766902,140.42,140.36,24.9349]
[1720711901647,0.17,140.44,140.38,7.1234]
[1720711901830,45.17,140.44,140.38,7.1234]
[1720711902047,52.2906,140.44,140.37,7.1239]
[1720711902832,1.66766902,140.43,140.36,24.9351]
[1720711903138,1.66766902,140.42,140.36,24.9351]
[1720711903354,1.66766902,140.42,140.33,17.8146]
[1720711903646,1.66766902,140.42,140.36,7.1244]
[1720711903833,1.66766902,140.42,140.35,24.9371]
[1720711903834,8.78926902,140.42,140.35,24.9371]
[1720711904147,1.66766902,140.41,140.35,24.9371]
[1720711904852,1.66766902,140.41,140.36,7.1244]
[1720711905245,8.78866902,140.43,140.36,7.1244]
[1720711905436,46.66766902,140.42,140.36,7.1244]
[1720711905746,46.66766902,140.42,140.37,7.1239]
[1720711906041,1.66766902,140.44,140.37,17.809]
[1720711906830,1.66766902,140.44,140.37,24.9328]
[1720711906831,8.78826902,140.44,140.37,24.9328]
[1720711907343,1.66766902,140.44,140.38,7.1233]
[1720711907538,1.66766902,140.44,140.39,24.9299]
[1720711907744,1.66766902,140.45,140.39,24.9299]
[1720711907928,1.66766902,140.45,140.37,7.1239]
[1720711908247,7.1206,140.44,140.36,14.9342]
[1720711908546,1.66766902,140.43,140.36,14.9342]
[1720711909033,1.66766902,140.42,140.36,14.9342]
[1720711909233,7.1208,140.44,140.37,7.1239]
[1720711909433,1.66766902,140.43,140.37,7.1239]
[1720711909641,1.66766902,140.43,140.39,7.123]
[1720711909830,1.66766902,140.45,140.4,17.8057]
[1720711910147,46.66766902,140.45,140.37,17.8091]
[1720711910452,53.78806902,140.45,140.38,7.1234]
[1720711910630,53.78806902,140.45,140.37,17.8091]
[1720711910631,1.66766902,140.45,140.39,17.8071]
[1720711910832,1.66766902,140.45,140.39,24.9299]
[1720711911041,1.66766902,140.45,140.4,7.1224]
[1720711911242,1.66766902,140.45,140.4,7.1223]
[1720711912031,17.37686902,140.46,140.41,7.1218]
[1720711912353,1.66766902,140.45,140.39,24.9296]
[1720711912547,1.66766902,140.45,140.4,7.1224]
[1720711913338,1.66766902,140.45,140.39,24.9299]
[1720711913943,1.66766902,140.45,140.38,7.1234]
[1720711914146,7.1205,140.44,140.37,34.4436]
[1720711914453,1.66766902,140.43,140.38,8.20309976]
[1720711914630,1.66766902,140.43,140.38,7.1231]
[1720711914827,1.66766902,140.44,140.38,7.1233]
[1720711915258,1.66766902,140.44,140.39,7.1229]
[1720711915442,1.66766902,140.44,140.38,24.9315]
[1720711915647,1.66766902,140.44,140.38,17.8085]
[1720711915835,1.66766902,140.44,140.4,7.1224]
[1720711916035,1.66766902,140.44,140.38,17.8085]
[1720711916250,1.66766902,140.44,140.38,24.9319]
[1720711916644,1.66766902,140.45,140.4,17.8059]
[1720711916839,1.66766902,140.45,140.4,24.9279]
[1720711917169,1.66766902,140.45,140.39,7.1228]
[1720711917343,1.66766902,140.45,140.4,7.1224]
[1720711917663,1.66766902,140.45,140.39,24.9301]
[1720711918042,46.66766902,140.45,140.4,7.1223]
[1720711918250,1.66766902,140.45,140.4,7.1223]
[1720711918639,6.3341,140.44,140.37,7.1237]
[1720711918966,46.83766902,140.43,140.37,7.1237]
[1720711919144,1.66766902,140.42,140.37,7.1237]
[1720711919879,1.66766902,140.42,140.33,17.8142]
[1720711920241,7.1229,140.4,140.34,7.373399]
[1720711920435,46.83766902,140.39,140.34,7.373399]
[1720711920745,46.83766902,140.39,140.33,17.8142]
[1720711920948,1.66766902,140.39,140.33,17.8142]
[1720711921255,7.1217,140.42,140.34,7.1252]
[1720711921569,46.83766902,140.41,140.35,7.1249]
[1720711921741,46.83766902,140.41,140.35,17.8124]
[1720711921940,1.66766902,140.41,140.35,17.8124]
[1720711922164,1.66766902,140.41,140.35,24.9372]
[1720711922554,8.78976902,140.41,140.34,7.1254]
[1720711922752,45.0,140.4,140.34,7.1254]
[1720711922990,1.83766902,140.39,140.32,17.8156]
[1720711923148,1.83766902,140.39,140.32,24.9418]
[1720711923469,22.5357,140.38,140.33,7.1258]
[1720711923766,1.66766902,140.37,140.32,17.8156]
[1720711923976,1.66766902,140.37,140.32,7.1264]
[1720711924154,6.4249,140.38,140.36,7.1242]
[1720711924355,1.66766902,140.39,140.36,7.1244]
[1720711924580,17.77846902,140.41,140.31,115.1943]
[1720711924762,1.66766902,140.41,140.37,17.8098]
[1720711924981,1.66766902,140.41,140.34,17.813]
[1720711925161,1.66766902,140.41,140.34,24.9381]
[1720711925874,1.66766902,140.41,140.33,7.1258]
[1720711926044,8.78976902,140.41,140.33,7.1258]
[1720711926244,1.66766902,140.41,140.33,17.8147]
[1720711926459,0.17,140.4,140.34,7.1254]
[1720711926642,0.17,140.4,140.33,24.9404]
[1720711926842,0.17,140.4,140.33,17.8147]
[1720711927040,46.66766902,140.41,140.35,17.8124]
[1720711927464,7.2925,140.4,140.33,7.1256]
[1720711927783,1.66766902,140.39,140.32,17.8153]
[1720711927946,16.0395,140.38,140.3,7.1274]
[1720711928147,46.66766902,140.37,140.3,7.1274]
[1720711928847,53.79176902,140.37,140.3,7.1274]
[1720711930173,6.3549,140.36,140.29,0.8261568]
[1720711930473,46.66766902,140.35,140.3,7.1275]
[1720711931671,46.66766902,140.35,140.29,0.8261568]
[1720711933065,46.66766902,140.35,140.29,7.9540568]
[1720711933458,46.66766902,140.35,140.29,0.8261568]
[1720711935053,0.17,140.34,140.29,0.8261568]
[1720711935686,1.66766902,140.34,140.3,7.1274]
[1720711935861,1.66766902,140.35,140.31,7.127]
[1720711936051,6.3549,140.36,140.3,27.32]
[1720711936248,6.3549,140.36,140.32,17.816]
[1720711936574,1.66766902,140.35,140.3,7.1275]
[1720711936943,8.02256902,140.36,140.31,7.1269]
[1720711937764,8.02256902,140.36,140.29,25.7734568]
[1720711937765,1.66766902,140.35,140.29,25.7734568]
[1720711937948,1.66766902,140.35,140.3,7.1275]
[1720711938351,1.66766902,140.35,140.31,7.1268]
[1720711938888,1.66766902,140.35,140.3,7.94700819]
[1720711939454,8.02256902,140.36,140.31,7.127]
[1720711939660,1.66766902,140.35,140.31,7.127]
[1720711939875,1.66766902,140.35,140.3,7.94710819]
[1720711940184,1.66766902,140.35,140.3,7.1271]
[1720711940668,8.02256902,140.36,140.31,7.1269]
[1720711940872,8.02256902,140.36,140.32,7.1265]
[1720711941067,8.02256902,140.36,140.31,17.8173]
[1720711941068,1.66766902,140.35,140.31,17.8173]
[1720711941270,1.66766902,140.35,140.3,7.1274]
[1720711941453,7.1259,140.34,140.29,0.8261568]
[1720711941651,1.66766902,140.35,140.29,0.8261568]
[1720711941858,1.66766902,140.35,140.3,7.94749467]
[1720711942062,1.66766902,140.35,140.31,7.127]
[1720711942257,6.3549,140.36,140.31,7.127]
[1720711942979,1.66766902,140.35,140.31,7.127]
[1720711944073,6.3549,140.36,140.31,17.8172]
[1720711944274,20.4274994,140.38,140.33,7.126]
[1720711944989,20.4274994,140.38,140.32,7.1263]
[1720711945157,20.4274994,140.38,140.31,24.944]
[1720711945475,27.5510994,140.38,140.31,17.8172]
[1720711945654,27.5510994,140.38,140.31,24.9441]
[1720711945857,7.1243,140.37,140.3,7.1274]
[1720711946055,1.66766902,140.36,140.3,7.1274]
[1720711946279,1.66766902,140.35,140.3,7.1274]
[1720711946480,1.66766902,140.36,140.32,7.1264]
[1720711946778,17.53716902,140.38,140.34,7.1254]
[1720711947089,15.8695,140.38,140.34,17.8136]
[1720711947471,15.8695,140.38,140.34,24.9389]
[1720711947673,15.8695,140.38,140.34,17.8136]
[1720711947978,17.53716902,140.38,140.33,7.1257]
[1720711948872,17.53716902,140.38,140.32,7.1261]
[1720711949071,15.8695,140.38,140.33,7.1257]
[1720711949387,1.66766902,140.37,140.32,24.9423]
[1720711949682,1.66766902,140.37,140.33,7.1259]
[1720711949990,6.5117,140.4,140.33,27.32]
[1720711950183,15.6711,140.41,140.33,27.32]
[1720711950367,15.6711,140.41,140.37,7.1237]
[1720711950678,15.6711,140.41,140.36,24.9353]
[1720711950901,15.6711,140.41,140.36,17.811]
[1720711951070,15.6711,140.41,140.36,24.9354]
[1720711951268,15.6711,140.41,140.36,17.811]
[1720711951492,15.6711,140.41,140.37,7.1238]
[1720711951663,1.66766902,140.43,140.37,7.1238]
[1720711951862,1.66766902,140.43,140.38,8.5478878]
[1720711952101,7.96986902,140.44,140.38,8.5478878]
[1720711952266,7.96986902,140.44,140.39,7.1229]
[1720711952592,15.09046902,140.44,140.36,24.9351]
[1720711953096,7.96986902,140.44,140.37,7.1237]
[1720711953265,7.96986902,140.44,140.38,7.1235]
[1720711953773,7.1221,140.41,140.32,17.8151]
[1720711953990,15.86,140.43,140.32,17.8151]
[1720711953991,1.66766902,140.4,140.32,45.1351]
[1720711954195,1.66766902,140.39,140.33,7.1258]
[1720711954574,1.66766902,140.39,140.34,7.1254]
[1720711954778,1.66766902,140.39,140.32,24.9415]
[1720711954992,6.5192,140.34,140.29,0.8261568]